fUSD/lending_fUSD_20240327
["ID","MTS","AMOUNT","RATE_DAILY","PERIOD"]
[320768357,1711552249913,-151.0,0.00053998,120]
[320768358,1711552249923,-816.77915,0.00053998,120]
[320768359,1711552249933,-151.0,0.00053998,120]
[320768360,1711552249943,-816.77915,0.00053998,120]
[320768361,1711552249953,-2500.0,0.00054,120]
[320768362,1711552249962,-27979.86374242,0.00054,120]
[320768363,1711552249972,-2000.0,0.00054,120]
[320768364,1711552249981,-500.0,0.00054,120]
[320768365,1711552249990,-2000.45267693,0.00054,120]
[320768366,1711552249999,-2999.99,0.00054,30]
[320768367,1711552250008,-2999.99,0.00054,30]
[320768368,1711552250018,-3000.0,0.00054,30]
[320768369,1711552250027,-3000.0,0.00054,30]
[320768370,1711552250036,-3000.0,0.00054,30]
[320768371,1711552250046,-686.55,0.00054,30]
[320768372,1711552250055,-3803.95,0.00054,120]
[320768373,1711552250065,-150.0,0.00054006,7]
[320768374,1711552250075,-150.0,0.00054007,7]
[320768375,1711552250085,-150.0,0.00054012,7]
[320768376,1711552250094,-212.55588251,0.00054024,60]
[320768377,1711552250104,-158.26380816,0.0005403,60]
[320768378,1711552250114,-175.98822806,0.00054069,60]
[320768379,1711552250123,-150.0,0.0005407,7]
[320768380,1711552250137,-150.0,0.00054077,7]
[320768381,1711552250147,-150.0,0.00054083,7]
[320768382,1711552250156,-158.54465154,0.00054086,60]
[320768383,1711552250165,-212.55588251,0.00054095,60]
[320768384,1711552250174,-2500.0,0.000541,120]
[320768385,1711552250183,-1317.68084,0.000541,2]
[320768386,1711552250193,-167.22672524,0.00054102,60]
[320768387,1711552250202,-154.06908697,0.00054105,60]
[320768388,1711552250212,-151.55177306,0.00054118,60]
[320768389,1711552250222,-150.0,0.00054125,7]
[320768390,1711552250232,-150.0,0.00054137,7]
[320768391,1711552250241,-150.0,0.00054139,7]
[320768392,1711552250251,-150.0,0.00054152,7]
[320768393,1711552250261,-150.0,0.00054155,7]
[320768394,1711552250272,-217.21979707,0.00054157,60]
[320768395,1711552250281,-302.0,0.00054159,4]
[320768396,1711552250290,-150.0,0.00054176,7]
[320768397,1711552250300,-151.55177306,0.00054181,60]
[320768398,1711552250310,-150.0,0.00054183,7]
[320768399,1711552250320,-150.0,0.00054189,7]
[320768400,1711552250330,-1500.0,0.00054191,7]
[320768401,1711552250340,-150.0,0.00054197,7]
[320768402,1711552250350,-2500.0,0.000542,120]
[320768403,1711552250360,-2439.47944599,0.000542,2]
[320768404,1711552250369,-150.0,0.00054204,7]
[320768405,1711552250379,-150.0,0.00054204,7]
[320768406,1711552250389,-150.0,0.0005421,7]
[320768407,1711552250399,-507.0,0.00054219,120]
[320768408,1711552250408,-556.0,0.00054219,120]
[320768409,1711552250417,-672.0,0.00054219,120]
[320768410,1711552250426,-150.0,0.00054226,7]
[320768411,1711552250436,-150.0,0.0005423,7]
[320768412,1711552250445,-154.78248493,0.00054234,60]
[320768413,1711552250454,-1500.0,0.00054236,7]
[320768414,1711552250464,-1500.0,0.00054239,7]
[320768415,1711552250473,-310.0,0.00054244,4]
[320768416,1711552250482,-7718.68064193,0.00054244,4]
[320768417,1711552250492,-995.34342008,0.00054244,10]
[320768418,1711552250502,-155.11054002,0.00054244,4]
[320768419,1711552250511,-26037.73269729,0.00054244,7]
[320768420,1711552250521,-1092.59521982,0.00054245,90]
[320768421,1711552250530,-6107.72543655,0.00054245,4]
[320768422,1711552250540,-176.88622862,0.00054245,4]
[320768423,1711552250549,-500.0,0.00054245,90]
[320768424,1711552250559,-500.0,0.00054245,90]
[320768425,1711552250569,-1000.0,0.00054245,90]
[320768426,1711552250580,-684883.27681439,0.00054246,36]
[320768427,1711552250593,-471789.99556054,0.00054246,36]
[320768428,1711552250605,-201055.66429265,0.00054246,36]
[320768429,1711552250626,-139745.69639152,0.00054246,36]
[320768430,1711552250642,-1049.22947764,0.00054246,36]
[320768431,1711552250658,-503.6111413,0.00048,100]
[320768432,1711552250667,-277.31474521,0.00054246,36]
[320768433,1711552252767,-168.33486966,0.00017999,2]
[320768434,1711552252778,-351.20236085,0.00018,2]
[320768437,1711552252858,-3077.6682786,0.00018,2]
[320768438,1711552252870,-4174.37740674,0.00018,2]
[320768439,1711552252883,-5828.94105528,0.00018,2]
[320768440,1711552252897,-569.27101809,0.00018,2]
[320768441,1711552252990,-5917.76994183,0.00018,2]
[320768442,1711552253005,-4642.99270245,0.00018,2]
[320768443,1711552253015,-500.0,0.00019178,2]
[320768444,1711552253026,-500.0,0.00019178,2]
[320768445,1711552253036,-205.0,0.00034375,2]
[320768446,1711552253046,-14485.56506579,0.00036115,2]
[320768447,1711552253074,-80438.88493421,0.00036115,2]
[320768448,1711552253084,-205.0,0.00037375,2]
[320768449,1711552253094,-5743.01202704,0.0004,4]
[320768450,1711552253103,-375.50707307,0.00042937,36]
[320768451,1711552253113,-735.50015245,0.00047,2]
[320768452,1711552253123,-207.21675421,0.0005,2]
[320768453,1711552253135,-151.0,0.0005299,120]
[320768454,1711552253146,-151.0,0.0005299,14]
[320768455,1711552253156,-151.0,0.00053998,120]
[320768456,1711552253166,-151.0,0.00053998,14]
[320768457,1711552253176,-114543.76871986,0.00054246,36]
[320768458,1711552253186,-1213.377125,0.00054246,120]
[320768459,1711552253195,-328.18579076,0.00054246,31]
[320768460,1711552253204,-500.0,0.00054246,30]
[320768461,1711552253213,-2000.0,0.00054246,120]
[320768462,1711552253225,-500.0,0.00054246,30]
[320768463,1711552253234,-500.0,0.00054246,120]
[320768464,1711552253243,-500.0,0.00054246,120]
[320768465,1711552253253,-500.0,0.00054246,120]
[320768466,1711552253262,-500.0,0.00054246,120]
[320768467,1711552253271,-500.0,0.00054246,120]
[320768468,1711552253281,-500.0,0.00054246,30]
[320768469,1711552253290,-500.0,0.00054246,120]
[320768470,1711552253300,-500.0,0.00054246,120]
[320768471,1711552253309,-500.0,0.00054246,120]
[320768472,1711552253319,-500.0,0.00054246,120]
[320768473,1711552253330,-500.87877661,0.00054246,120]
[320768474,1711552253339,-500.0,0.00054246,120]
[320768475,1711552253348,-501.33833377,0.00054246,120]
[320768476,1711552253358,-500.0,0.00054246,120]
[320768477,1711552253368,-293.19481918,0.00054246,120]
[320768478,1711552253377,-501.00269233,0.00054246,120]
[320768479,1711552253387,-500.0,0.00054246,120]
[320768480,1711552253395,-500.0,0.00054246,120]
[320768481,1711552253405,-500.0,0.00054246,120]
[320768482,1711552253414,-500.0,0.00054246,120]
[320768483,1711552253428,-500.0,0.00054246,120]
[320768484,1711552253669,-500.0,0.00054246,120]
[320768485,1711552253679,-500.0,0.00054246,120]
[320768486,1711552253689,-500.0,0.00054246,120]
[320768487,1711552253698,-503.76677667,0.00054246,120]
[320768488,1711552253707,-500.0,0.00054246,120]
[320768489,1711552253716,-500.0,0.00054246,120]
[320768490,1711552253725,-596.86,0.00054246,120]
[320768491,1711552253734,-500.0,0.00054246,120]
[320768492,1711552253743,-502.75275785,0.00054246,120]
[320768493,1711552253753,-502.19522521,0.00054246,120]
[320768494,1711552253761,-505.84888559,0.00054246,120]
[320768495,1711552253772,-298.305002,0.00054246,120]
[320768496,1711552253782,-621.21942993,0.00054246,120]
[320768497,1711552253796,-501.56370705,0.00054246,120]
[320768498,1711552253807,-500.0,0.00054246,120]
[320768499,1711552253817,-500.0,0.00054246,120]
[320768500,1711552253827,-183.14068932,0.00054246,120]
[320768501,1711552253838,-503.70702233,0.00054246,120]
[320768502,1711552253848,-501.66165237,0.00054246,120]
[320768503,1711552253858,-500.0,0.00054246,120]
[320768504,1711552253868,-502.06940093,0.00054246,120]
[320768505,1711552253878,-500.0,0.00054246,120]
[320768506,1711552253887,-503.47777334,0.00054246,120]
[320768507,1711552253898,-500.0,0.00054246,120]
[320768508,1711552253907,-500.0,0.00054246,120]
[320768509,1711552253917,-500.0,0.00054246,120]
[320768510,1711552253926,-500.0,0.00054246,120]
[320768511,1711552253936,-500.85832288,0.00054246,120]
[320768512,1711552253945,-500.0,0.00054246,120]
[320768513,1711552253955,-602.71412997,0.00054246,120]
[320768514,1711552253964,-592.1,0.00054246,120]
[320768515,1711552253974,-504.68359182,0.00054246,120]
[320768516,1711552253983,-500.0,0.00054246,120]
[320768517,1711552253992,-500.0,0.00054246,120]
[320768518,1711552254002,-500.0,0.00054246,120]
[320768519,1711552254011,-500.0,0.00054246,120]
[320768520,1711552254021,-505.5269693,0.00054246,120]
[320768521,1711552254030,-500.0,0.00054246,120]
[320768522,1711552254040,-200.39085588,0.00054246,21]
[320768523,1711552254049,-500.0,0.00054246,120]
[320768524,1711552254059,-500.0,0.00054246,120]
[320768525,1711552254072,-501.76911242,0.00054246,60]
[320768526,1711552254084,-500.0,0.00054246,120]
[320768527,1711552254094,-500.0,0.00054246,120]
[320768528,1711552254103,-633.50889758,0.00054246,120]
[320768529,1711552254113,-500.0,0.00054246,120]
[320768530,1711552254122,-500.0,0.00054246,120]
[320768531,1711552254132,-500.0,0.00054246,120]
[320768532,1711552254141,-500.0,0.00054246,120]
[320768533,1711552254152,-500.0,0.00054246,120]
[320768534,1711552254162,-500.0,0.00054246,120]
[320768535,1711552254171,-500.0,0.00054246,120]
[320768536,1711552254181,-502.43881625,0.00054246,120]
[320768537,1711552254190,-506.14970445,0.00054246,120]
[320768538,1711552254199,-500.0,0.00054246,120]
[320768539,1711552254209,-500.0,0.00054246,120]
[320768540,1711552254218,-501.81158929,0.00054246,120]
[320768541,1711552254227,-500.0,0.00054246,120]
[320768542,1711552254238,-500.0,0.00054246,120]
[320768543,1711552254247,-502.20747559,0.00054246,120]
[320768544,1711552254256,-500.0,0.00054246,120]
[320768545,1711552254266,-501.09329088,0.00054246,120]
[320768546,1711552254277,-502.16549889,0.00054246,120]
[320768547,1711552254286,-500.0,0.00054246,120]
[320768548,1711552254296,-420.73304875,0.00054246,120]
[320768549,1711552254304,-500.0,0.00054246,120]
[320768550,1711552254314,-500.0,0.00054246,120]
[320768551,1711552254324,-500.0,0.00054246,120]
[320768552,1711552254334,-500.0,0.00054246,120]
[320768553,1711552254343,-500.0,0.00054246,120]
[320768554,1711552254354,-500.0,0.00054246,120]
[320768555,1711552254364,-544.27,0.00054246,120]
[320768556,1711552254373,-500.0,0.00054246,120]
[320768557,1711552254382,-500.0,0.00054246,120]
[320768558,1711552254392,-501.89321968,0.00054246,120]
[320768559,1711552254401,-500.0,0.00054246,120]
[320768560,1711552254411,-500.0,0.00054246,120]
[320768561,1711552254421,-500.0,0.00054246,120]
[320768562,1711552254432,-261.33878741,0.00054246,120]
[320768563,1711552254442,-500.0,0.00054246,120]
[320768564,1711552254452,-500.0,0.00054246,120]
[320768565,1711552254462,-500.0,0.00054246,120]
[320768566,1711552254472,-500.0,0.00054246,120]
[320768567,1711552254481,-500.0,0.00054246,120]
[320768568,1711552254491,-500.0,0.00054246,120]
[320768569,1711552254500,-500.0,0.00054246,120]
[320768570,1711552254509,-500.0,0.00054246,120]
[320768571,1711552254519,-500.0,0.00054246,120]
[320768572,1711552254528,-500.0,0.00054246,120]
[320768573,1711552254538,-500.0,0.00054246,120]
[320768574,1711552254548,-581.63893096,0.00054246,120]
[320768575,1711552254558,-500.0,0.00054246,120]
[320768576,1711552254568,-500.0,0.00054246,120]
[320768577,1711552254579,-500.0,0.00054246,120]
[320768578,1711552254588,-500.0,0.00054246,120]
[320768579,1711552254598,-500.0,0.00054246,120]
[320768580,1711552254607,-500.0,0.00054246,120]
[320768581,1711552254618,-500.0,0.00054246,120]
[320768582,1711552254627,-501.23702989,0.00054246,120]
[320768583,1711552254636,-264.95519702,0.00054246,120]
[320768584,1711552254646,-554.93429395,0.00054246,120]
[320768585,1711552254655,-500.0,0.00054246,120]
[320768586,1711552254664,-500.0,0.00054246,120]
[320768587,1711552254674,-500.0,0.00054246,120]
[320768588,1711552254683,-501.17903631,0.00054246,120]
[320768589,1711552254692,-500.0,0.00054246,120]
[320768590,1711552254702,-500.0,0.00054246,120]
[320768591,1711552254711,-500.0,0.00054246,120]
[320768592,1711552254720,-503.43809371,0.00054246,120]
[320768593,1711552254729,-500.0,0.00054246,120]
[320768594,1711552254739,-501.75409791,0.00054246,120]
[320768595,1711552254748,-500.0,0.00054246,120]
[320768596,1711552254757,-500.0,0.00054246,120]
[320768597,1711552254766,-537.12971618,0.00054246,120]
[320768598,1711552254776,-504.14154692,0.00054246,120]
[320768599,1711552254784,-500.0,0.00054246,120]
[320768600,1711552254794,-500.0,0.00054246,60]
[320768601,1711552254803,-500.0,0.00054246,120]
[320768602,1711552254813,-500.0,0.00054246,120]
[320768603,1711552254825,-501.9017905,0.00054246,120]
[320768604,1711552254835,-500.0,0.00054246,120]
[320768605,1711552254845,-500.0,0.00054246,120]
[320768606,1711552254854,-501.28530291,0.00054246,120]
[320768607,1711552254864,-534.04,0.00054246,120]
[320768608,1711552254873,-500.0,0.00054246,120]
[320768609,1711552254883,-500.0,0.00054246,120]
[320768610,1711552254904,-501.61507344,0.00054246,120]
[320768611,1711552254914,-500.0,0.00054246,120]
[320768612,1711552254924,-500.0,0.00054246,120]
[320768613,1711552254934,-151.0,0.00054246,120]
[320768614,1711552254943,-500.0,0.00054246,120]
[320768615,1711552254953,-500.0,0.00054246,120]
[320768616,1711552254963,-500.0,0.00054246,120]
[320768617,1711552254973,-500.0,0.00054246,120]
[320768618,1711552254983,-512.80546163,0.00054246,120]
[320768619,1711552254993,-554.14,0.00054246,120]
[320768620,1711552255004,-501.95096543,0.00054246,120]
[320768621,1711552255015,-500.0,0.00054246,120]
[320768622,1711552255025,-501.87804033,0.00054246,120]
[320768623,1711552255036,-500.0,0.00054246,120]
[320768624,1711552255045,-500.0,0.00054246,120]
[320768625,1711552255055,-501.13722304,0.00054246,120]
[320768626,1711552255065,-151.0,0.00054246,120]
[320768627,1711552255076,-501.77508693,0.00054246,120]
[320768628,1711552255086,-500.0,0.00054246,120]
[320768629,1711552255096,-502.65301383,0.00054246,120]
[320768630,1711552255105,-500.0,0.00054246,120]
[320768631,1711552255115,-500.0,0.00054246,120]
[320768632,1711552255125,-500.0,0.00054246,120]
[320768633,1711552255135,-180.54027907,0.00054246,120]
[320768634,1711552255147,-764.34,0.00054246,120]
[320768635,1711552255157,-500.0,0.00054246,120]
[320768636,1711552255167,-503.95239989,0.00054246,120]
[320768637,1711552255177,-500.0,0.00054246,120]
[320768638,1711552255186,-500.0,0.00054246,120]
[320768639,1711552255196,-310.0,0.00054246,120]
[320768640,1711552255206,-500.0,0.00054246,120]
[320768641,1711552255215,-500.0,0.00054246,120]
[320768642,1711552255226,-501.38434333,0.00054246,120]
[320768643,1711552255235,-500.0,0.00054246,120]
[320768644,1711552255245,-502.22037469,0.00054246,120]
[320768645,1711552255255,-500.0,0.00054246,120]
[320768646,1711552255265,-502.67601051,0.00054246,2]
[320768647,1711552255277,-500.0,0.00054246,120]
[320768648,1711552255286,-501.96048289,0.00054246,120]
[320768649,1711552255297,-502.03059049,0.00054246,120]
[320768650,1711552255308,-500.0,0.00054246,120]
[320768651,1711552255319,-151.0,0.00054246,120]
[320768652,1711552255330,-501.98240004,0.00054246,120]
[320768653,1711552255340,-500.0,0.00054246,120]
[320768654,1711552255350,-500.0,0.00054246,120]
[320768655,1711552255360,-499.91579309,0.00054246,120]
[320768656,1711552255370,-500.0,0.00054246,120]
[320768657,1711552255381,-500.0,0.00054246,120]
[320768658,1711552255391,-500.0,0.00054246,120]
[320768659,1711552255401,-500.32145746,0.00054246,120]
[320768660,1711552255410,-500.0,0.00054246,120]
[320768661,1711552255420,-500.0,0.00054246,120]
[320768662,1711552255430,-500.0,0.00054246,120]
[320768663,1711552255439,-500.0,0.00054246,120]
[320768664,1711552255449,-500.0,0.00054246,120]
[320768665,1711552255459,-500.0,0.00054246,120]
[320768666,1711552255469,-500.0,0.00054246,120]
[320768667,1711552255479,-500.0,0.00054246,120]
[320768668,1711552255489,-501.27037961,0.00054246,120]
[320768669,1711552255499,-553.63,0.00054246,120]
[320768670,1711552255509,-500.91862934,0.00054246,120]
[320768671,1711552255518,-500.0,0.00054246,120]
[320768672,1711552255529,-714.35,0.00054246,120]
[320768673,1711552255539,-500.0,0.00054246,120]
[320768674,1711552255549,-151.0,0.00054246,120]
[320768675,1711552255559,-503.41229208,0.00054246,120]
[320768676,1711552255568,-500.0,0.00054246,120]
[320768677,1711552255580,-641.19681382,0.00054246,120]
[320768678,1711552255590,-501.96600396,0.00054246,120]
[320768679,1711552255599,-500.0,0.00054246,120]
[320768680,1711552255611,-500.0,0.00054246,120]
[320768681,1711552255621,-578.67123819,0.00054246,120]
[320768682,1711552255631,-500.0,0.00054246,120]
[320768683,1711552255640,-500.0,0.00054246,120]
[320768684,1711552255650,-500.0,0.00054246,120]
[320768685,1711552255659,-155.27182677,0.00054246,120]
[320768686,1711552255669,-500.0,0.00054246,120]
[320768687,1711552255679,-500.0,0.00054246,120]
[320768688,1711552255688,-500.72410405,0.00054246,120]
[320768689,1711552255699,-500.0,0.00054246,120]
[320768690,1711552255710,-500.72520534,0.00054246,120]
[320768691,1711552255720,-500.0,0.00054246,120]
[320768692,1711552255730,-500.0,0.00054246,120]
[320768693,1711552255741,-500.0,0.00054246,120]
[320768694,1711552255752,-693.92,0.00054246,120]
[320768695,1711552255762,-500.0,0.00054246,120]
[320768696,1711552255772,-500.0,0.00054246,120]
[320768697,1711552255783,-500.0,0.00054246,120]
[320768698,1711552255792,-504.22441825,0.00054246,120]
[320768699,1711552255802,-500.0,0.00054246,120]
[320768700,1711552255811,-415.15357266,0.00054246,120]
[320768701,1711552255821,-500.0,0.00054246,120]
[320768702,1711552255831,-500.0,0.00054246,120]
[320768703,1711552255841,-502.16506843,0.00054246,120]
[320768704,1711552255851,-500.0,0.00054246,120]
[320768705,1711552255861,-505.08797448,0.00054246,120]
[320768706,1711552255870,-527.04465273,0.00054246,120]
[320768707,1711552255879,-500.0,0.00054246,120]
[320768708,1711552255890,-500.0,0.00054246,120]
[320768709,1711552255899,-384.59468155,0.00054246,120]
[320768710,1711552255909,-500.0,0.00054246,120]
[320768711,1711552255919,-500.0,0.00054246,120]
[320768712,1711552255929,-500.0,0.00054246,120]
[320768713,1711552255941,-500.99759841,0.00054246,120]
[320768714,1711552255951,-500.0,0.00054246,120]
[320768715,1711552255961,-500.0,0.00054246,120]
[320768716,1711552255971,-501.73905335,0.00054246,2]
[320768717,1711552255981,-500.0,0.00054246,120]
[320768718,1711552255991,-505.53450869,0.00054246,120]
[320768719,1711552256001,-500.64562346,0.00054246,120]
[320768720,1711552256011,-502.0487724,0.00054246,120]
[320768721,1711552256020,-500.0,0.00054246,120]
[320768722,1711552256031,-500.0,0.00054246,120]
[320768723,1711552256041,-500.0,0.00054246,120]
[320768724,1711552256050,-500.0,0.00054246,120]
[320768725,1711552256060,-501.44809763,0.00054246,120]
[320768726,1711552256070,-500.0,0.00054246,120]
[320768727,1711552256080,-500.0,0.00054246,120]
[320768728,1711552256090,-501.74868492,0.00054246,120]
[320768729,1711552256100,-500.0,0.00054246,120]
[320768730,1711552256109,-577.75,0.00054246,15]
[320768731,1711552256119,-500.0,0.00054246,120]
[320768732,1711552256130,-500.0,0.00054246,120]
[320768733,1711552256140,-500.0,0.00054246,120]
[320768734,1711552256153,-500.0,0.00054246,120]
[320768735,1711552256164,-500.43345618,0.00054246,120]
[320768736,1711552256174,-500.0,0.00054246,120]
[320768737,1711552256183,-500.0,0.00054246,120]
[320768738,1711552256369,-502.31036529,0.00054246,30]
[320768739,1711552256379,-500.0,0.00054246,120]
[320768740,1711552256390,-500.0,0.00054246,120]
[320768741,1711552256400,-500.0,0.00054246,120]
[320768742,1711552256410,-500.0,0.00054246,120]
[320768743,1711552256419,-500.0,0.00054246,120]
[320768744,1711552256429,-500.0,0.00054246,120]
[320768745,1711552256439,-621.06194623,0.00054246,120]
[320768746,1711552256448,-501.10576191,0.00054246,120]
[320768747,1711552256457,-500.0,0.00054246,120]
[320768748,1711552256466,-500.0,0.00054246,120]
[320768749,1711552256475,-505.06560101,0.00054246,120]
[320768750,1711552256484,-500.0,0.00054246,120]
[320768751,1711552256495,-501.64994793,0.00054246,120]
[320768752,1711552256504,-500.0,0.00054246,120]
[320768753,1711552256514,-503.60531393,0.00054246,120]
[320768754,1711552256523,-500.0,0.00054246,120]
[320768755,1711552256532,-500.0,0.00054246,120]
[320768756,1711552256542,-501.09167691,0.00054246,120]
[320768757,1711552256551,-501.18812536,0.00054246,120]
[320768758,1711552256560,-500.0,0.00054246,120]
[320768759,1711552256570,-500.0,0.00054246,120]
[320768760,1711552256580,-501.93242424,0.00054246,120]
[320768761,1711552256590,-151.631502,0.00054246,120]
[320768762,1711552256599,-500.0,0.00054246,30]
[320768763,1711552256608,-500.0,0.00054246,120]
[320768764,1711552256617,-581.83468018,0.00054246,120]
[320768765,1711552256626,-505.18886125,0.00054246,120]
[320768766,1711552256635,-503.15354118,0.00054246,120]
[320768767,1711552256645,-500.0,0.00054246,120]
[320768768,1711552256656,-503.48880685,0.00054246,120]
[320768769,1711552256665,-500.0,0.00054246,120]
[320768770,1711552256675,-500.0,0.00054246,120]
[320768771,1711552256685,-500.0,0.00054246,120]
[320768772,1711552256695,-500.0,0.00054246,120]
[320768773,1711552256704,-501.26013985,0.00054246,120]
[320768774,1711552256714,-500.0,0.00054246,120]
[320768775,1711552256724,-500.0,0.00054246,120]
[320768776,1711552256733,-638.18648288,0.00054246,120]
[320768777,1711552256742,-505.8713121,0.00054246,120]
[320768778,1711552256752,-502.14374411,0.00054246,120]
[320768779,1711552256761,-501.07713856,0.00054246,120]
[320768780,1711552256771,-500.0,0.00054246,120]
[320768781,1711552256780,-500.0,0.00054246,120]
[320768782,1711552256790,-500.67311914,0.00054246,120]
[320768783,1711552256799,-500.0,0.00054246,120]
[320768784,1711552256808,-505.90195568,0.00054246,120]
[320768785,1711552256818,-500.0,0.00054246,120]
[320768786,1711552256827,-500.0,0.00054246,120]
[320768787,1711552256837,-636.23283348,0.00054246,120]
[320768788,1711552256847,-500.0,0.00054246,120]
[320768789,1711552256858,-501.37276891,0.00054246,120]
[320768790,1711552256868,-508.48262515,0.00054246,120]
[320768791,1711552256877,-500.0,0.00054246,120]
[320768792,1711552256887,-500.0,0.00054246,120]
[320768793,1711552256897,-501.59160669,0.00054246,120]
[320768794,1711552256906,-500.10472024,0.00054246,120]
[320768795,1711552256916,-502.87399101,0.00054246,120]
[320768796,1711552256925,-151.0,0.00054246,120]
[320768797,1711552256934,-500.0,0.00054246,120]
[320768798,1711552256943,-500.0,0.00054246,120]
[320768799,1711552256952,-501.30978072,0.00054246,120]
[320768800,1711552256961,-500.0,0.00054246,120]
[320768801,1711552256971,-500.0,0.00054246,120]
[320768802,1711552256980,-502.30156493,0.00054246,120]
[320768803,1711552256989,-504.55505825,0.00054246,120]
[320768804,1711552256998,-504.75255991,0.00054246,120]
[320768805,1711552257007,-500.0,0.00054246,120]
[320768806,1711552257017,-151.15431523,0.00054246,120]
[320768807,1711552257026,-500.0,0.00054246,120]
[320768808,1711552257034,-500.0,0.00054246,120]
[320768809,1711552257043,-383.91052273,0.00054246,120]
[320768810,1711552257054,-500.0,0.00054246,120]
[320768811,1711552257063,-500.0,0.00054246,120]
[320768812,1711552257073,-500.0,0.00054246,120]
[320768813,1711552257084,-500.0,0.00054246,120]
[320768814,1711552257093,-501.60332462,0.00054246,120]
[320768815,1711552257102,-500.0,0.00054246,120]
[320768816,1711552257111,-504.80225978,0.00054246,120]
[320768817,1711552257121,-500.90284503,0.00054246,120]
[320768818,1711552257130,-500.0,0.00054246,120]
[320768819,1711552257141,-500.0,0.00054246,120]
[320768820,1711552257151,-500.0,0.00054246,120]
[320768821,1711552257161,-500.0,0.00054246,120]
[320768822,1711552257170,-302.45017487,0.00054246,120]
[320768823,1711552257179,-500.0,0.00054246,120]
[320768824,1711552257189,-500.0,0.00054246,120]
[320768825,1711552257199,-500.0,0.00054246,120]
[320768826,1711552257208,-500.0,0.00054246,120]
[320768827,1711552257218,-500.0,0.00054246,120]
[320768828,1711552257228,-500.0,0.00054246,120]
[320768829,1711552257238,-500.0,0.00054246,120]
[320768830,1711552257247,-500.0,0.00054246,120]
[320768831,1711552257257,-500.0,0.00054246,120]
[320768832,1711552257267,-500.0,0.00054246,120]
[320768833,1711552257277,-500.0,0.00054246,120]
[320768834,1711552257287,-500.0,0.00054246,120]
[320768835,1711552257296,-500.0,0.00054246,120]
[320768836,1711552257306,-500.0,0.00054246,120]
[320768837,1711552257316,-500.0,0.00054246,120]
[320768838,1711552257325,-500.0,0.00054246,120]
[320768839,1711552257335,-500.0,0.00054246,120]
[320768840,1711552257345,-500.0,0.00054246,120]
[320768841,1711552257355,-500.0,0.00054246,120]
[320768842,1711552257365,-500.0,0.00054246,120]
[320768843,1711552257374,-500.0,0.00054246,120]
[320768844,1711552257384,-500.0,0.00054246,120]
[320768845,1711552257393,-501.41253007,0.00054246,120]
[320768846,1711552257403,-504.86650954,0.00054246,120]
[320768847,1711552257412,-310.0,0.00054246,120]
[320768848,1711552257422,-500.0,0.00054246,120]
[320768849,1711552257431,-500.0,0.00054246,120]
[320768850,1711552257440,-502.28212722,0.00054246,120]
[320768851,1711552257450,-500.0,0.00054246,120]
[320768852,1711552257459,-500.0,0.00054246,120]
[320768853,1711552257469,-500.0,0.00054246,120]
[320768854,1711552257479,-151.0,0.00054246,120]
[320768855,1711552257489,-500.0,0.00054246,120]
[320768856,1711552257499,-500.74361226,0.00054246,120]
[320768857,1711552257509,-500.0,0.00054246,120]
[320768858,1711552257519,-500.0,0.00054246,120]